{"text_format":"1","workbook":"xlsx","n_sheets":1,"sheets":["conceptos"],"not_rendered":{"charts":0,"images":2,"macros":1,"external_links":0,"defined_names":1,"comments":0,"pivot_tables":0},"unopened":[],"bounds":{"document_bytes":16777216,"sheet_cells":100000,"rows_first":2000,"rows_last":500,"rows_between":2000,"halvings":0,"cell_chars":16384,"cell_head_chars":4096},"cells_cut":0,"cells_raw":0,"read":"whole","date_system":"1900"}

{"sheet":"conceptos","index":0,"n_rows":211,"n_cols":8,"rows_kept":211,"cut":false,"hidden":false,"merged":[[208,0,208,4],[209,0,210,4],[13,0,13,6],[0,2,0,5],[9,2,9,5],[1,2,3,5],[4,2,4,3],[6,2,6,3],[7,2,7,3],[4,4,4,5],[5,4,5,5],[6,4,6,5],[7,4,7,5],[10,2,10,5],[11,2,11,5],[5,1,8,1]]}
[null,"GOBIERNO DEL ESTADO DE JALISCO","LICITACIÓN PÚBLICA ESTATAL"]
[null,"INSTITUTO DE LA INFRAESTRUCTURA FÍSICA EDUCATIVA DEL","E-REM-B-REH-02718-LP-0067-2020"]
[null,"ESTADO DE JALISCO"]
[]
[null,"DESCRIPCIÓN GENERAL DE LOS TRABAJOS:","FECHA DE INICIO:"]
[null,null,null,"FECHA DE TERMINACIÓN:"]
[null,null,"PLAZO DE EJECUCIÓN:"]
[null,null,"FECHA:"]
[]
[null,"RAZÓN SOCIAL DEL LICITANTE:","NOMBRE, CARGO Y FIRMA DEL LICITANTE:",null,null,null,"DOCUMENTO"]
[]
[]
[]
["PRESUPUESTO DE OBRA"]
[]
["CLAVE","DESCRIPCIÓN","UNIDAD","CANTIDAD","PRECIO UNITARIO ($)","PRECIO UNITARIO ($) CON LETRA","IMPORTE ($) M.N."]
["TRABAJO : BAS-REH-02718","REHABILITACIÓN GENERAL EN EL JARDÍN DE NIÑOS ROSARIO CASTELLANOS CCT 14EJN0023T, UBICADO EN LA COLONIA GUADALAJARA ORIENTE, MUNICIPIO DE GUADALAJARA, JALISCO.",null,null,null,null,{"$f":"TEXT(SUM(G18 + G78 + G112 + G119 + G142), \"$ #,##0.00 ;\")","v":"$ 0.00 "}]
["EDFS","EDIFICIOS",null,null,null,null,{"$f":"TEXT(SUM(G19 + G27 + G29 + G31 + G33 + G36 + G75), \"$ #,##0.00 ;\")","v":"$ 0.00 "}]
["EDFS.01(140)","DEMOLICIONES, DESMONTAJES Y MECANICA DE SUELOS    ",null,null,null,null,{"$f":"TEXT(SUM(G20:G26), \"$ #,##0.00 ;\")","v":"$ 0.00 "}]
[140217,"DEMOLICION DE PISO DE CONCRETO DE 8 A 10 CM DE ESPESOR, EN FRANJAS DE 40 A 50 CMS. DE ANCHO, PARA COLOCACION DE INSTALACIONES, INCLUYE: CORTE CON DISCO PARA DELIMITAR AREA DE DEMOLICION, AFINE Y COMPACTACION DEL MATERIAL DE RELLENO, MATERIALES, REPOSICION DEL PISO DE CONCRETO F´C= 150 KG/CM2, ACABADO IGUAL AL EXISTENTE, DESPERDICIOS, MANO DE OBRA, HERRAMIENTA, EQUIPO, LIMPIEZA,  ACARREOS DE MATERIALES AL SITIO DE SU UTILIZACION, CARGA Y ACARREO INTERIOR Y FUERA DE LA OBRA DEL MATERIAL PRODUCTO DE LA DEMOLICION.","ML ","3.0000",0,"CERO PESOS 00/100 M.N.",0,254523]
[140247,"DESCONEXION Y DESINSTALACION DE ALIMENTADORES ELECTRICOS EXISTENTES EN SALIDAS ELECTRICAS DE ALUMBRADO, APAGADORES Y/O CONTACTOS, CON RECUPERACION, INCLUYE: DESCONEXIONES, RETIRO Y ACARREOS EN EL INTERIOR DEL PLANTEL DEL CABLEADO PRODUCTO DE LA DESINSTALACION, GUIAS,  ANDAMIOS, HERRAMIENTA, MANO DE OBRA CALIFICADA Y LIMPIEZA DEL AREA DE TRABAJO. EN CUALQUIER NIVEL","SAL","45.0000",0,"CERO PESOS 00/100 M.N.",0,254524]
[140273,"DESINSTALACION Y RETIRO DE INTERRUPTORES TERMO MAGNETICOS DE TABLEROS EN MAL ESTADO, SIN RECUPERACION, INCLUYE: DESCONEXION, DESMONTAJE, HERRAMIENTA, MANO DE OBRA CALIFICADA, LIMPIEZA Y ACARREOS DE MATERIALES DE RETIRO FUERA DE LA OBRA.","PZA","15.0000",0,"CERO PESOS 00/100 M.N.",0,254525]
[905496,"DEMOLICION DE PISO DE MOSAICO DE PASTA DE Y FIRME DE CONCRETO EN INTERIOR DE AULA., INCLUYE;  (PROTECCIONES DE INSTALACIONES QUE PUDIERAN RESULTAR DAÑADAS EN EL PROCESO DE LA DEMOLICION.)  CORTE CON DISCO PARA DELIMITAR AREAS DE DEMOLICION, HERRAMIENTAS, MANO DE OBRA, RETIRO Y ACARREO DE MATERIALES DE DESHECHO DENTRO Y FUERA DE LA OBRA ATIRADERO AUTORIZADO Y LIMPIEZA DEL AREA DE LOS TRABAJOS.","M2 ","48.0000",0,"CERO PESOS 00/100 M.N.",0,254526]
[907172,"PERFORACION Y RESANE DE MUROS Y/O TECHOS PARA PASO DE TUBERIA DE 1/2\" A 2 1/2\" DE DIAMETRO, CON MORTERO CEMENTO-ARENA DE RIO EN PROP. 1:4,, CON ACABADO IGUAL AL EXISTENTE,  INCLUYE: TRAZO, HERRAMIENTAS, MATERIALES,  MANO DE OBRA, RETIRO Y ACARREO DE MATERIALES DE DESHECHO DENTRO Y FUERA DE LA OBRA ATIRADERO AUTORIZADO Y LIMPIEZA DEL AREA DE LOS TRABAJOS.","PZA","4.0000",0,"CERO PESOS 00/100 M.N.",0,254527]
[907174,"DESINSTALACION DE CENTRO DE CARGA E INTERRUPTOR DE CUCHILLA, INCLUYE: MANO DE OBRA, HERRAMIENTA, EQUIPO,  DESCONEXION, RANURA, DESMONTAJE, ACARREO Y ENTREGA A LA SUPERVISION.","PDA","4.0000",0,"CERO PESOS 00/100 M.N.",0,254528]
[929600,"DESMONTAJE DE LAMPARA EXISTENTE A CUALQUIER NIVEL. INCLUYE; DESCONEXION, GABINETE, BALASTRA, DESINSTALACION DE MATERIAL DE FIJACION, HERRAMIENTA, MANO DE OBRA, ACARREO DE MATERIAL PRODUCTO DE DESINSTALACION A LUGAR INDICADO POR SUPERVISION Y  LIMPIEZA DEL AREA DE TRABAJO","PZA","12.0000",0,"CERO PESOS 00/100 M.N.",0,254529]
["EDFS.02(160)","CIMENTACION                                       ",null,null,null,null,{"$f":"TEXT(SUM(G28:G28), \"$ #,##0.00 ;\")","v":"$ 0.00 "}]
[180030,"AFINE Y NIVELACION DE TERRENO EN AREA DE FIRME PARA PISO EN FORMA MECANICA, CON PLACA VIBRATORIA, CAMPACTADA AL 90% PROCTOR,  INCLUYE: SUMINISTRO DE AGUA PARA LOGRAR HUMEDAD OPTIMA, EQUIPO, PRUEBAS DE COMPACTACION, AFINE, NIVELACION, HERRAMIENTAS Y  MANO DE OBRA.","M2 ","48.0000",0,"CERO PESOS 00/100 M.N.",0,254530]
["EDFS.03(310)","MUROS, CADENAS, CASTILLOS Y REPIZONES.            ",null,null,null,null,{"$f":"TEXT(SUM(G30:G30), \"$ #,##0.00 ;\")","v":"$ 0.00 "}]
[916026,"PREPARACION DE LA SUPERFICIE EN MURO DE ADOBE PARA RECIBIR CADENA DE CONCRETO, NIVELANDO SUPERFICIE CON UNA PLANTILLA DE CONCRETO POBRE, F´C= 100 KG/CM2, DE 5 CM DE ESPESOR PROMEDIO, POR 50 CM DE ANCHO, DENTANDO LA SUPERFICIE PARA LA SUJECION DE LA CADENA, INCLUYE: MATERIALES, CIMBRA COMUN, DESIMBRADO, MANO DE OBRA, HERRAMIENTA, LIMPIEZA, ACARREOS DE MATERIALES AL SITIO DE SU COLOCACION, A CUALQUIER NIVEL.","ML ","1.0000",0,"CERO PESOS 00/100 M.N.",0,254531]
["EDFS.04(355)","RECUBRIMIENTOS Y ACABADOS                         ",null,null,null,null,{"$f":"TEXT(SUM(G32:G32), \"$ #,##0.00 ;\")","v":"$ 0.00 "}]
[934966,"RESANE EN MUROS CON MORTERO CEMENTO-CAL-ARENA 1:2:6, DE 2 CMS. DE ESPESOR POR HASTA 20 CMS. DE ANCHO, EN APLANADO EXISTENTE. INCLUYE: ANDAMIOS, HERRAMIENTAS, MATERIALES, MANO DE OBRA Y ACARREOS.","ML ","20.0000",0,"CERO PESOS 00/100 M.N.",0,254532]
["EDFS.05(372)","PISOS                                             ",null,null,null,null,{"$f":"TEXT(SUM(G34:G35), \"$ #,##0.00 ;\")","v":"$ 0.00 "}]
[373026,"PISO DE CONCRETO HECHO EN OBRA F'C=200 KG/CM2, TMA 3/4\", DE 10 CMS. DE ESPESOR, ACABADO RAYADO CON BROCHA, EN FORMA INTERGRAL, SIN UTILIZACION DE PASTA, COLADO A CUADROS, CON REFUERZO DE MALLA ELECTROSOLDADA 6-6 / 10-10, INCLUYE: TRAZO, NIVELACION, AFINE Y COMPACTACION DEL TERRENO, MATERIALES, CIMBRA DE FRONTERA, DESCIMBRA, DESPERDICIOS, CURADO, VIBRADO, MUESTREADO, JUNTAS FRIAS, VOLTEADOR,  HERRAMIENTAS, MANO DE OBRA Y ACARREOS DE MATERIALES AL SITIO DE SU UTILIZACION.","M2 ","48.0000",0,"CERO PESOS 00/100 M.N.",0,254533]
[376046,"SUMINISTRO Y COLOCACION DE PISO DE  LOSETA CERAMICA DE 30 X 30 CM., 33 X 33 CM., PRENSADO EN SECO, CON RECUBRIMIENTO ESMALTADO DE COLOR, QUEMADO A MONOCOCCION A TEMPERATURAS DE 1,150 A 1200 °C,  CALIDAD DE PRIMERA, QUE DEBERA CUMPLIR CON LAS SIGUIENTES CARACTERISTICAS TECNICAS: ABSORCION <= 3% , COEFICIENTE DE ESTATICO DE FRICCION >= 0.5, MODULO DE RUPTURA >= 300 KG/CM², PEI, RESISTENCIA A LA ABRASION VISIBLE 1500 CICLOS (PEI IV), RESISTENTE AL MANCHADO, RESISTENCIA AL RAYADO >= 5.0 MOHS, RESISTENTE A LOS QUIMICOS. ASENTADO CON PEGAPISO Y JUNTEDO CON JUNTEADOR DE COLOR,  JUNTAS DE 4 MM. DE ANCHO, MINIMO,  INCLUYE: TRAZO, CORTE, REMATES, ESCUADRE, DESPERDICIOS, DESPATINADO, EMBOQUILLADOS, CERTIFICADO DE CALIDAD, HERRAMIENTAS, MATERIALES,  MANO DE OBRA, LIMPIEZA  Y ACARREO DE MATERIALES AL SITIO DE SU UTILIZACION, A CUALQUIER NIVEL.","M2 ","48.0000",0,"CERO PESOS 00/100 M.N.",0,254534]
["EDFS.06(510)","INSTALACION ELECTRICA EN EDIFICIO                 ",null,null,null,null,{"$f":"TEXT(SUM(G37:G74), \"$ #,##0.00 ;\")","v":"$ 0.00 "}]
[518212,"SUMINISTRO Y COLOCACION DE CONDULET LB, LF, T, TB O LR, DE 3/4\" DE DIAM., OVALADO, MARCA C. HINDS, INCLUYE: TAPA Y EMPAQUE DE NEOPRENO, SOPORTE, FIJACION, ALINEACION, MATERIALES MENORES, MANO DE OBRA ESPECIALIZADA, HERRAMIENTA, PRUEBAS, FLETES Y ACARREO DE LOS MATERIALES AL SITIO DE SU UTILIZACION.","PZA","3.0000",0,"CERO PESOS 00/100 M.N.",0,254535]
[518213,"SUMINISTRO Y COLOCACION DE CONDULET LB, LF, T, TB O LR, DE 1\" DE DIAM., OVALADO, MARCA C. HINDS, INCLUYE: TAPA Y EMPAQUE DE NEOPRENO, SOPORTE, FIJACION, ALINEACION, MATERIALES MENORES, MANO DE OBRA ESPECIALIZADA, HERRAMIENTA, PRUEBAS, FLETES Y ACARREO DE LOS MATERIALES AL SITIO DE SU UTILIZACION.","PZA","2.0000",0,"CERO PESOS 00/100 M.N.",0,254536]
[518217,"SUMINISTRO Y COLOCACION DE CONDULET LB O LR, DE 2 1/2\" DE DIAM., OVALADO, MARCA C. HINDS, INCLUYE: MANO DE OBRA, HERRAMIENTA, MATERIALES MENORES, PRUEBAS Y ACARREO DE MATERIALES HASTA EL SITIO DE SU COLOCACION.","PZA","1.0000",0,"CERO PESOS 00/100 M.N.",0,254537]
[518219,"SUMINISTRO Y COLOCACION DE CONDULET LB, LF, T, TB O LR, DE 1 1/2\" DE DIAM., OVALADO, MARCA C. HINDS, INCLUYE: MANO DE OBRA, HERRAMIENTA, MATERIALES MENORES, PRUEBAS Y ACARREO DE MATERIALES HASTA EL SITIO DE SU COLOCACION.","PZA","1.0000",0,"CERO PESOS 00/100 M.N.",0,254538]
[518221,"SUMINISTRO Y COLOCACION DE CONDULET LB, LF, T, TB O LR, DE 1 1/4\" DE DIAM., OVALADO, MARCA C. HINDS, INCLUYE: TAPA Y EMPAQUE DE NEOPRENO, SOPORTE, FIJACION, ALINEACION, MATERIALES MENORES, MANO DE OBRA ESPECIALIZADA, HERRAMIENTA, PRUEBAS, FLETES Y ACARREO DE LOS MATERIALES AL SITIO DE SU UTILIZACION.","PZA","3.0000",0,"CERO PESOS 00/100 M.N.",0,254539]
[522423,"SALIDA ELECTRICA PARA  CONTROL DE VENTILADOR, VISIBLE, CON TUBERIA Y CONEXIONES CONDUIT GALVANIZADA PARED DELGADA DE AJUSTE, ETIQUETA VERDE, DE 13 Y 19 MM. DE DIAMETRO,  CABLE VINANEL THW-LS 600 V. A 75° C, 90° C, MARCA CONDUCTORES MONTERREY, (VIAKON-PROTOCOLIZADO), CABLE VINANEL 21 THW-LS 600 V. A 75° C, 90° C, MARCA CONDUMEX (CONDUMEX PROTOCOLIZADO).  CALIBRE 12 Y 14, INCLUYE: CODOS, COPLES, CAJA CUADRADA, DESPERDICIOS, ACCESORIOS, TAPA GALVANIZADA,  CONTROL, TAPA , MATERIALES DE FIJACION, MANO DE OBRA, HERRAMIENTAS, Y ACAREO DE MATERIALES AL SITIO DE SU COLOCACION ACUALQUIER ALTURA.","SAL","10.0000",0,"CERO PESOS 00/100 M.N.",0,254540]
[532227,"SUMINISTRO Y COLOCACION DE CURVA CONDUIT GALVANIZADA DE AJUSTE DE 19 MM. DE DIAMETRO, INCLUYE: MATERIALES MENORES, PRUEBAS, CORTE, AJUSTES, DESPERDICIOS, HERRAMIENTAS, MANO DE OBRA Y ACARREO DE LOS MATERIALES AL SITIO DE SU COLOCACION.","PZA","3.0000",0,"CERO PESOS 00/100 M.N.",0,254541]
[532228,"SUMINISTRO Y COLOCACION DE CURVA CONDUIT GALVANIZADA DE AJUSTE DE 25 MM. DE DIAMETRO, INCLUYE: MATERIALES MENORES, PRUEBAS, CORTE, AJUSTES, DESPERDICIOS, HERRAMIENTAS, MANO DE OBRA Y ACARREO DE LOS MATERIALES AL SITIO DE SU COLOCACION.","PZA","2.0000",0,"CERO PESOS 00/100 M.N.",0,254542]
[532231,"SUM. Y COL. DE CURVA CONDUIT GALVANIZADA DE AJUSTE DE 51 MM. DE DIAMETRO, INCLUYE: MATERIALES MENORES, PRUEBAS, CORTE, AJUSTES, DESPERDICIOS, HERRAMIENTAS, MANO DE OBRA Y ACARREO DE LOS MATERIALES AL SITIO DE SU COLOCACION.","PZA","3.0000",0,"CERO PESOS 00/100 M.N.",0,254543]
[532232,"SUM. Y COL. DE CURVA CONDUIT GALVANIZADA DE AJUSTE DE 32 MM. DE DIAMETRO, INCLUYE: MATERIALES MENORES, PRUEBAS, CORTE, AJUSTES, DESPERDICIOS, HERRAMIENTAS, MANO DE OBRA Y ACARREO DE LOS MATERIALES AL SITIO DE SU COLOCACION.","PZA","3.0000",0,"CERO PESOS 00/100 M.N.",0,254544]
[532234,"SUMINISTRO Y COLOCACION DE CURVA CONDUIT GALVANIZADA DE AJUSTE DE 38 MM. DE DIAMETRO, INCLUYE: MATERIALES MENORES,  AJUSTES, DESPERDICIOS, HERRAMIENTAS, MANO DE OBRA Y ACARREO DE LOS MATERIALES AL SITIO DE SU COLOCACION.","PZA","1.0000",0,"CERO PESOS 00/100 M.N.",0,254545]
[534120,"SUMINISTRO Y COLOCACION DE TUBO CONDUIT GALVANIZADO, DE 25 MM, PARED DELGADA DE AJUSTE ETIQUETA VERDE, INCLUYE: TRAZO, CORTES, AJUSTES, CONECTORES, COPLES, CURVAS, DOBLECES, DESPERDICIOS, MATERIALES MENORES, HERRAMIENTAS, PRUEBAS, LIMPIEZA, MANO DE OBRA Y ACARREO DE MATERIALES AL SITIO DE SU COLOCACION.","ML ","12.0000",0,"CERO PESOS 00/100 M.N.",0,254546]
[534122,"SUMINISTRO Y COLOCACION DE TUBO CONDUIT GALVANIZADO, DE 19 MM, PARED DELGADA DE AJUSTE ETIQUETA VERDE, INCLUYE: TRAZO, CORTES, AJUSTES, CONECTORES, COPLES, CURVAS, DOBLECES, DESPERDICIOS, MATERIALES MENORES, HERRAMIENTAS, PRUEBAS, LIMPIEZA, MANO DE OBRA Y ACARREO DE MATERIALES AL SITIO DE SU COLOCACION.","ML ","18.0000",0,"CERO PESOS 00/100 M.N.",0,254547]
[534126,"SUMINISTRO Y COLOCACION DE TUBO CONDUIT GALVANIZADO, DE 38 MM, PARED DELGADA DE AJUSTE ETIQUETA VERDE, INCLUYE: TRAZO, CORTES, AJUSTES, CONECTORES, COPLES,  DOBLECES, DESPERDICIOS, MATERIALES MENORES, HERRAMIENTAS, PRUEBAS, LIMPIEZA, MANO DE OBRA Y ACARREO DE MATERIALES AL SITIO DE SU COLOCACION.","ML ","6.0000",0,"CERO PESOS 00/100 M.N.",0,254548]
[534128,"SUMINISTRO Y COLOCACION DE TUBO CONDUIT GALVANIZADO, DE 51 MM, PARED DELGADA DE AJUSTE ETIQUETA VERDE, INCLUYE: TRAZO, CORTES, AJUSTES, CONECTORES, COPLES, DOBLECES, DESPERDICIOS, MATERIALES MENORES, HERRAMIENTAS, PRUEBAS, LIMPIEZA, MANO DE OBRA Y ACARREO DE MATERIALES AL SITIO DE SU COLOCACION.","ML ","10.0000",0,"CERO PESOS 00/100 M.N.",0,254549]
[534129,"SUMINISTRO Y COLOCACION DE TUBO CONDUIT GALVANIZADO, DE 64 MM, PARED DELGADA DE AJUSTE ETIQUETA VERDE, INCLUYE: TRAZO, CORTES, AJUSTES, CONECTORES, COPLES, DOBLECES, DESPERDICIOS, MATERIALES MENORES, HERRAMIENTAS, PRUEBAS, LIMPIEZA, MANO DE OBRA Y ACARREO DE MATERIALES AL SITIO DE SU COLOCACION.","ML ","6.0000",0,"CERO PESOS 00/100 M.N.",0,254550]
[536006,"SUMINISTRO Y COLOCACION DE CABLE VINANEL THW-LS 600 V. A 75° C, 90° C, MARCA CONDUCTORES MONTERREY, (VIAKON-PROTOCOLIZADO), CABLE VINANEL 21 THW-LS 600 V. A 75° C, 90° C, MARCA CONDUMEX (CONDUMEX PROTOCOLIZADO). CAL. 12,  INCLUYE: DESPERDICIOS, MATERIALES MENORES, HERRAMIENTA, CONEXIONES, MANO DE OBRA ESPECIALIZADA, LIMPIEZA DEL AREA DE TRABAJO, PRUEBAS Y ACARREO AL SITIO DE SU COLOCACION.","ML ","10.0000",0,"CERO PESOS 00/100 M.N.",0,254551]
[536008,"SUMINISTRO Y COLOCACION DE CABLE VINANEL THW-LS 600 V. A 75° C, 90° C, MARCA CONDUCTORES MONTERREY, (VIAKON-PROTOCOLIZADO), CABLE VINANEL 21 THW-LS 600 V. A 75° C, 90° C, MARCA CONDUMEX (CONDUMEX PROTOCOLIZADO). CAL. 10,  INCLUYE: DESPERDICIOS, MATERIALES MENORES, HERRAMIENTA, CONEXIONES, MANO DE OBRA ESPECIALIZADA, LIMPIEZA DEL AREA DE TRABAJO, PRUEBAS Y ACARREO AL SITIO DE SU COLOCACION.","ML ","100.0000",0,"CERO PESOS 00/100 M.N.",0,254552]
[540012,"SUMINISTRO Y COLOCACION DE CENTRO DE CARGAS TIPO QOD-2, MCA. SQUARE D, INCLUYE: ELEMENTOS DE FIJACION,  PRUEBAS, MATERIALES MENORES Y DE CONSUMO, CONEXIONES, LIMPIEZAS, HERRAMIENTAS, MANO DE OBRA ESPECIALIZADA Y ACARREO DE MATERIALES AL SITIO DE SU COLOCACION.","PZA","1.0000",0,"CERO PESOS 00/100 M.N.",0,254553]
[540016,"SUMINISTRO E INSTALACION DE CENTRO DE CARGA QO 612-L100 MCA. SQD. , INCLUYE: PRUEBAS, MATERIALES MENORES Y ACARREO DE MATERIALES AL SITIO DE SU COLOCACION.\n","PZA","1.0000",0,"CERO PESOS 00/100 M.N.",0,254554]
[540305,"SUMINISTRO E INSTALACION DE CENTRO DE CARGA CAT. QO-816L-100,  DE 8 POLOS  100 AMPERES, INCLUYE: MATERIALES, ZAPATAS, MANO DE OBRA, HERRAMIENTAS, ELEMENTOS DE FIJACION, PRUEBAS,  ACARREOS Y MATERIALES MENORES.","PZA","2.0000",0,"CERO PESOS 00/100 M.N.",0,254555]
[540420,"SUMINISTRO Y COLOCACION DE CENTRO DE CARGAS LINEA DOMESTICA QOD-4F O S, MCA. SQUARE D, INCLUYE: ELEMENTOS DE FIJACION,  PRUEBAS, MATERIALES MENORES Y DE CONSUMO, CONEXIONES, LIMPIEZAS, HERRAMIENTAS, MANO DE OBRA ESPECIALIZADA Y ACARREO DE MATERIALES AL SITIO DE SU COLOCACION.","PZA","1.0000",0,"CERO PESOS 00/100 M.N.",0,254556]
[543012,"SUMINISTRO Y COLOCACION DE INTERRUPTOR TERMOMAGNETICO DERIVADO CON 1 POLOS, DE 15-60 AMPERES, MCA. SQUARE D, CAT. QO. INCLUYE: PRUEBAS, MATERIALES MENORES, HERRAMIENTAS, MANO DE OBRA ESPECIALIZADA  Y ACARREO DE MATERIALES AL SITIO DE SU COLOCACION.","PZA","64.0000",0,"CERO PESOS 00/100 M.N.",0,254557]
[543022,"SUMINISTRO Y COLOCACION DE INTERRUPTOR TERMOMAGNETICO DERIVADO CON 2 POLOS, DE 15-60 AMPERES, MCA. SQUARE D, CAT. QO. INCLUYE: PRUEBAS, MATERIALES MENORES, HERRAMIENTAS, MANO DE OBRA ESPECIALIZADA  Y ACARREO DE MATERIALES AL SITIO DE SU COLOCACION.","PZA","12.0000",0,"CERO PESOS 00/100 M.N.",0,254558]
[543032,"SUMINISTRO Y COLOCACION DE INTERRUPTOR TERMOMAGNETICO DERIVADO CON 3 POLOS, DE 15-60 AMPERES, MCA. SQUARE D, CAT. QO. INCLUYE: PRUEBAS, MATERIALES MENORES, HERRAMIENTAS, MANO DE OBRA ESPECIALIZADA  Y ACARREO DE MATERIALES AL SITIO DE SU COLOCACION.","PZA","4.0000",0,"CERO PESOS 00/100 M.N.",0,254559]
[543042,"SUMINISTRO Y COLOCACION DE INTERRUPTOR TERMOMAGNETICO DERIVADO CON 3 POLOS, DE 70-100 AMPERES, MCA. SQUARE D, CAT. QO. INCLUYE: PRUEBAS, MATERIALES MENORES, HERRAMIENTAS, MANO DE OBRA ESPECIALIZADA  Y ACARREO DE MATERIALES AL SITIO DE SU COLOCACION.","PZA","4.0000",0,"CERO PESOS 00/100 M.N.",0,254560]
[546792,"SUMINISTRO Y COLOCACION DE VENTILADOR DE TECHO DE 52\"; 3 ASPAS, 3 ESTRATOS, 3 VELOCIDADES ( TIPO INDUSTRIAL ) INCLUYE: MATERIALES MENORES Y DE FIJACION, HERRAMIENATAS, LIMPIEZA, PRUEBAS, MANO DE OBRA, Y ACARREO AL SITIO DE SU COLOCACION.","PZA","10.0000",0,"CERO PESOS 00/100 M.N.",0,254561]
[550090,"SUMINISTRO E INSTALACION DE LUMINARIO FLUORESCENTE DE SOBREPONER, TIPO ENVOLVENTE, AHORRADOR DE ENERGIA DE 2 X 32 WATTS. FABRICADO EN LAMINA CAL 22, RECUBIERTO CON TRATAMIENTO FOSFATIZADO Y PINTURA ACRILICA O POLIESTER COLOR BLANCO, APLICADA ELECTROSTATICAMENTE Y TERMOENDURECIDA, PARA OBTENER UNA REFLECTANCIA MINIMA DE 90%, CON DIFUSOR ACRILICO PRISMATICO 100% PURO, TIPO ENVOLVENTE, CON UNA LONGITUD DE 120 CM., BALASTRO ELECTRONICO DE BAJA EMISION DE ARMONICAS, PARA OPERAR UNA O DOS LAMPARAS T8 DE 32 WATTS, LA LUMINARIA (COMPLETA) DEBERA CUMPLIR CON LA NORMA ANCE, INCLUYE: COPIA DE CERTIFICACION ANCE ANEXA EN ELTRAMITE DE LA ESTIMACION, FIJACION, CONEXION, MATERIALES MENORES, HERRAMIENTAS, GARANTIAS,  MANO DE OBRA, PRUEBAS Y ACARREOS.","PZA","83.0000",0,"CERO PESOS 00/100 M.N.",0,254562]
[550190,"SUMINISTRO E INSTALACION DE LUMINARIO FLUORESCENTE DE SOBREPONER, TIPO ENVOLVENTE, AHORRADOR DE ENERGIA DE 2 X 59 WATTS. FABRICADO EN LAMINA CAL 22, RECUBIERTO CON TRATAMIENTO FOSFATIZADO Y PINTURA ACRILICA O POLIESTER COLOR BLANCO, APLICADA ELECTROSTATICAMENTE Y TERMOENDURECIDA, PARA OBTENER UNA REFLECTANCIA MINIMA DE 90%, CON DIFUSOR ACRILICO PRISMATICO 100% PURO, TIPO ENVOLVENTE, CON UNA LONGITUD DE 240 CM., BALASTRO ELECTRONICO DE BAJA EMISION DE ARMONICAS, PARA OPERAR UNA O DOS LAMPARAS T8 DE 59 WATTS, (EQUIVALENTE A 4 LAMPARAS T8 DE 32 WATTS.), LA LUMINARIA (COMPLETA) DEBERA CUMPLIR CON LA NORMA ANCE, INCLUYE: COPIA DE CERTIFICACION ANCE ANEXA EN EL TRAMITE DE LA ESTIMACION, FIJACION, CONEXION, MATERIALES MENORES, HERRAMIENTAS, GARANTIAS, MANO DE OBRA, PRUEBAS Y ACARREOS.","PZA","94.0000",0,"CERO PESOS 00/100 M.N.",0,254563]
[907390,"CONEXION DE NUEVOS ALIMENTADORES A TABLEROS EXISTENTES, INCLUYE: PRUEBAS, BALANCEO, SEPARCION Y ACOMODO DE CABLEADO, MATERIAL MENORES Y DE CONSUMO, RESANES, MANO DE OBRA, LIMPIEZA, HERRAMIENTAS Y EQUIPO.","PZA","1.0000",0,"CERO PESOS 00/100 M.N.",0,254564]
[907568,"RECABLEADO DE SALIDA ELECTRICA DE CENTRO EN DUCTERIA EXISTENTE, CABLE VINANEL THW-LS 600 V. A 75° C, 90° C, MARCA CONDUCTORES MONTERREY, (VIAKON-PROTOCOLIZADO), CABLE VINANEL 21 THW-LS 600 V. A 75° C, 90° C, MARCA CONDUMEX (CONDUMEX PROTOCOLIZADO).  CALIBRE 10 Y 12, INCLUYE: DESCONEXIONES, RETIRO DE CABLES AL 100%, MATERIALES MENORES, HERRAMIENTA, MANO DE OBRA ESPECIALIZADA , CONEXIONES, LIMPIEZA DEL AREA DE TRABAJO, PRUEBAS, DESPERDICIOS Y ACARREO DEL MATERIAL AL SITIO DE SU COLOCACION, A CUALQUIER NIVEL. (NO INCLUYE DUCTERIA, REGISTRO Y CHALUPAS)","SAL","10.0000",0,"CERO PESOS 00/100 M.N.",0,254565]
[907569,"RECABLEADO DE SALIDA ELECTRICA PARA CONTACTO EN DUCTERIA EXISTENTE, CABLE VINANEL THW-LS 600 V. A 75° C, 90° C, MARCA CONDUCTORES MONTERREY, (VIAKON-PROTOCOLIZADO), CABLE VINANEL 21 THW-LS 600 V. A 75° C, 90° C, MARCA CONDUMEX (CONDUMEX PROTOCOLIZADO).  CALIBRE 10 Y 12, INCLUYE: DESCONEXIONES, RETIRO DE CABLES AL 100%, ACCESORIOS, CONTACTO DUPLEX POLARIZADO, CONEXION A TIERRA, TAPA DE ALUMINIO,   MATERIALES MENORES,  HERRAMIENTA, MANO DE OBRA ESPECIALIZADA , CONEXIONES, LIMPIEZA DEL AREA DE TRABAJO, PRUEBAS, DESPERDICIOS Y ACARREO DEL MATERIAL AL SITIO DE SU COLOCACION, A CUALQUIER NIVEL. (NO INCLUYE DUCTERIA, REGISTRO Y CHALUPAS)","SAL","10.0000",0,"CERO PESOS 00/100 M.N.",0,254566]
[907570,"RECABLEADO DE SALIDA ELECTRICA PARA APAGADOR EN DUCTERIA EXISTENTE, CABLE VINANEL THW-LS 600 V. A 75° C, 90° C, MARCA CONDUCTORES MONTERREY, (VIAKON-PROTOCOLIZADO), CABLE VINANEL 21 THW-LS 600 V. A 75° C, 90° C, MARCA CONDUMEX (CONDUMEX PROTOCOLIZADO).  CALIBRE 10 Y 12, INCLUYE: DESCONEXIONES, RETIRO DE CABLES AL 100%, ACCESORIOS, APAGADOR, CONEXION A TIERRA, TAPA DE ALUMINIO,   MATERIALES MENORES,  HERRAMIENTA, MANO DE OBRA ESPECIALIZADA , CONEXIONES, LIMPIEZA DEL AREA DE TRABAJO, PRUEBAS, DESPERDICIOS Y ACARREO DEL MATERIAL AL SITIO DE SU COLOCACION, A CUALQUIER NIVEL. (NO INCLUYE DUCTERIA, REGISTRO Y CHALUPAS)","SAL","9.0000",0,"CERO PESOS 00/100 M.N.",0,254567]
[910351,"SALIDA ELECTRICA PARA VENTILADOR DE TECHO, VISIBLE, CON TUBERIA Y CONEXIONES CONDUIT GALV. P.G. ETIQUETA VERDE DE AJUSTE, 13 Y 19 MM. CABLE VINANEL THW-LS 600 V. A 75° C, 90° C, MARCA CONDUCTORES MONTERREY, (VIAKON-PROTOCOLIZADO), CABLE VINANEL 21 THW-LS 600 V. A 75° C, 90° C, MARCA CONDUMEX (CONDUMEX PROTOCOLIZADO). CALIBRE 10 Y 12, INCLUYE: CAJAS CUADRADAS, CHALUPAS, TAPAS GALVANIZADAS, CONEXIONES, DESPERDICIOS, MATERIALES MENORES, ELEMENTOS DE FIJACION, LIMPIEZAS, PRUEBAS, HERRAMIENTAS, MANO DE OBRA Y ACARREOS DE MATERIALES AL SITIO DE SU COLOCACION.","SAL","10.0000",0,"CERO PESOS 00/100 M.N.",0,254568]
[910518,"SALIDA ELECTRICA DE CENTRO AISLADA, VISIBLE, CON TUBERIA Y CONEXIONES CONDUIT GALVANIZADA P.G., ETIQUETA VERDE DE AJUSTE DE 13 Y 19  MM. DE DIAMETRO,  CABLE VINANEL THW-LS 600 V. A 75° C, 90° C, MARCA CONDUCTORES MONTERREY, (VIAKON-PROTOCOLIZADO), CABLE VINANEL 21 THW-LS 600 V. A 75° C, 90° C, MARCA CONDUMEX (CONDUMEX PROTOCOLIZADO).  CALIBRE 12, CON CONDULET, INCLUYE: MATERIALES MENORES, PRUEBAS, DESPERDICIOS Y ACARREO DEL MATERIAL AL SITIO DE SU COLOCACION, A CUALQUIER NIVEL.","SAL","15.0000",0,"CERO PESOS 00/100 M.N.",0,254569]
[910519,"SALIDA ELECTRICA PARA APAGADOR, VISIBLE, CON CANALETA DE PVC THORMAN Y/O TUBERIA Y CONEXIONES CONDUIT GALVANIZADA P.G. ETIQUETA VERDE DE AJUSTE DE 13 Y 19 MM. DE DIAMETRO,  CABLE VINANEL THW-LS 600 V. A 75° C, 90° C, MARCA CONDUCTORES MONTERREY, (VIAKON-PROTOCOLIZADO), CABLE VINANEL 21 THW-LS 600 V. A 75° C, 90° C, MARCA CONDUMEX (CONDUMEX PROTOCOLIZADO). , CALIBRE 12, CONDULET, PLACA, ACCESORIOS, INCLUYE: CONEXION A TIERRA, MATERIALES MENORES, PRUEBAS, DESPERDICIOS Y ACARREO DEL MATERIAL AL SITIO DE SU COLOCACION, A CUALQUIER NIVEL.","SAL","10.0000",0,"CERO PESOS 00/100 M.N.",0,254570]
[935760,"SALIDA ELECTRICA PARA CONTACTO DUPLEX POLARIZADO, VISIBLE, CON CANALETA DE PVC THORMAN Y/O TUBERIA Y CONEXIONES CONDUIT GALVANIZADA P.G. ETIQUETA VERDE DE AJUSTE DE 13 Y 19 MM. DE DIAMETRO,  CABLE VINANEL THW-LS 600 V. A 75° C, 90° C, MARCA CONDUCTORES MONTERREY, (VIAKON-PROTOCOLIZADO), CABLE VINANEL 21 THW-LS 600 V. A 75° C, 90° C, MARCA CONDUMEX (CONDUMEX PROTOCOLIZADO). , CALIBRE 10, CONDULET, PLACA, ACCESORIOS, INCLUYE: CONEXION A TIERRA, MATERIALES MENORES, PRUEBAS, DESPERDICIOS Y ACARREO DEL MATERIAL AL SITIO DE SU COLOCACION, A CUALQUIER NIVEL.","SAL","10.0000",0,"CERO PESOS 00/100 M.N.",0,254571]
[973647,"SUMINISTRO Y COLOCACION DE CURVA CONDUIT GALVANIZADA DE AJUSTE DE 64 MM. DE DIAMETRO, INCLUYE: MATERIALES MENORES,  AJUSTES, DESPERDICIOS, HERRAMIENTAS, MANO DE OBRA Y ACARREO DE LOS MATERIALES AL SITIO DE SU COLOCACION.","PZA","1.0000",0,"CERO PESOS 00/100 M.N.",0,254572]
["EDFS.07(530)","EQUIPOS E INSTALACIONES DE REDES DE VOZ Y DATOS.  ",null,null,null,null,{"$f":"TEXT(SUM(G76:G77), \"$ #,##0.00 ;\")","v":"$ 0.00 "}]
[524622,"SALIDA PARA TELEFONO, INTERCOMUNICACION Y SONIDO, OCULTA, CON TUBERIA Y CONEXIONES CONDUIT GALVANIZADA P.G., ETIQUETA VERDE DE AJUSTE, DE 19 MM. DE DIAMETRO, ALAMBRE GUIA GALV. CAL. 14, ACCESORIOS QUINZIÑO, CAJA REGISTRO Y TAPA, INCLUYE: MATERIALES MENORES, PRUEBAS, DESPERDICIOS Y ACARREO DEL MATERIAL AL SITIO DE SU COLOCACION, A CUALQUIER NIVEL.","SAL","1.0000",0,"CERO PESOS 00/100 M.N.",0,254573]
[524630,"CABLEADO DE SALIDA DE SONIDO, PARA SERVICIO A BOCINAS O BAFLES, COMPUESTA CON CABLE POLARIZADO PARA BOCINAS CAL. 12  AWG. MCA. CYSAMEX O SIMILAR, INCLUYE: CONEXIONES, ACCESORIOS, PLACA CIEGA QUINZIÑO,  MATERIALES, ELEMENTOS DE FIJACION, DESPERDICIOS, PRUEBAS, ACARREOS,  GARANTIA, LIMPIEZAS Y MANO DE OBRA ESPECIALIZADA.","SAL","1.0000",0,"CERO PESOS 00/100 M.N.",0,254574]
[33,"MURO PARA CONTENCION Y ACOTAMIENTO PERIMETRAL.",null,null,null,null,{"$f":"TEXT(SUM(G79 + G83 + G87 + G94 + G99 + G103 + G107 + G110), \"$ #,##0.00 ;\")","v":"$ 0.00 "}]
["33.01(140)","DEMOLICIONES, DESMONTAJES Y MECANICA DE SUELOS    ",null,null,null,null,{"$f":"TEXT(SUM(G80:G82), \"$ #,##0.00 ;\")","v":"$ 0.00 "}]
[140076,"DEMOLICION DE MURO DE LADRILLO DE LAMA Y/O BLOCK DE JALCRETO DE 14 CMS. DE ESPESOR A CUALQUIER NIVEL, INCLUYE:  DEMOLICION DE DALAS, CADENAS Y CASTILLOS,  DEMOLICION DE RECUBRMIENTOS, APLANADOS, AZULEJO,(PROTECCIONES DE PISOS, VIDRIOS, PUERTAS, VENTANAS, LAMPARAS Y DEMAS INSTALACIONES QUE PUDIERAN RESULTAR DAÑADAS EN EL PROCESO DE LA DEMOLICION.) HERRAMIENTAS, EQUIPO DE SEGURIDAD,  ANDAMIOS, MANO DE OBRA, RETIRO Y ACARREO DE MATERIALES DE DESHECHO DENTRO Y FUERA DE LA OBRA ATIRADERO AUTORIZADO Y LIMPIEZA DEL AREA DE LOS TRABAJOS.","M2 ","14.3000",0,"CERO PESOS 00/100 M.N.",0,254575]
[140152,"DESMONTAJE DE CANCELERIA  DE PERFIL TUBULAR  CON RECUPERACION DE LAS MISMAS. PARA SU POSTERIOR COLOCACION, INCLUYE: DEMOLICION DE ANCLAJES ACARREO Y RETIRO FUERA DE OBRA DE MATERIAL PRODUCTO DE LA DEMOLICION, HERRAMIENTAS, MANO DE OBRA CALIFICADA Y ACOMODO DE LOS ELEMENTOS DE HERRERIA AL LUGAR QUE SE INDIQUE EN OBRA.","M2 ","31.8000",0,"CERO PESOS 00/100 M.N.",0,254576]
[140621,"DEMOLICION DE CIMIENTO DE MAMPOSTERIA DE PIEDRA BRAZA ASENTADA CON MORTERO CEM-ARE. INCLUYE: HERRAMIENTA, EQUIPO NECESARIO, MATERIAL DE CONSUMO, MANO DE OBRA, RETIRO Y ACARREO DEL MATERIAL DENTRO Y FUERA DE LA OBRA.\n","M3 ","1.2000",0,"CERO PESOS 00/100 M.N.",0,254577]
["33.02(150)","TRABAJOS PRELIMINARES                             ",null,null,null,null,{"$f":"TEXT(SUM(G84:G86), \"$ #,##0.00 ;\")","v":"$ 0.00 "}]
[150120,"TRAZO Y NIVELACION DE EXTERIORES ESTABLECIENDO REFERENCIAS DEFINITIVAS, CON TRANSITO Y NIVEL (EQUIPO TOPOGRAFICO), INCLUYE: PERSONAL TECNICO CALIFICADO, ESTACAS, MOJONERAS, LOCALIZACION DE EJES Y/O ENTRE EJES, BANCOS DE NIVEL, MATERIALES PARA SEÑALAMIENTO, EQUIPO, HERRAMIENTA Y MANO DE OBRA.","M2 ","4.0500",0,"CERO PESOS 00/100 M.N.",0,254580]
[152204,"EXCAVACION EN CEPAS POR CUALQUIER MEDIO, MATERIAL TIPO \"B\", DE 0 A 2.00 M. DE PROFUNDIDAD, EN SECO, INCLUYE: AFINE DE TALUDES Y FONDO, TRASPALEOS,  MOVIMIENTOS Y ACARREOS DENTRO DE LA OBRA, HERRAMIENTAS Y MANO DE OBRA, MEDIDO EN BANCO.","M3 ","2.4000",0,"CERO PESOS 00/100 M.N.",0,254583]
[156002,"CARGA POR CUALQUIER MEDIO Y ACARREO EN CAMION DE MATERIAL DE DESPERDICIO PRODUCTO DE LAS EXCAVACIONES FUERA DE LA OBRA, A LUGAR PERMITIDO POR LAS AUTORIDADES CORRESPONDIENTES, MEDIDO EN BANCO. INCLUYE CARGA,  ACARREO Y DESCARGA A TIRO LIBRE, HERRAMIENTA, EQUIPO, MATERIALES DE CONSUMO Y MANO DE OBRA.","M3 ","2.4000",0,"CERO PESOS 00/100 M.N.",0,254585]
["33.03(160)","CIMENTACION                                       ",null,null,null,null,{"$f":"TEXT(SUM(G88:G93), \"$ #,##0.00 ;\")","v":"$ 0.00 "}]
[162002,"CIMIENTO DE PIEDRA BRAZA ACOMODADA PIEDRA POR PIEDRA, ASENTADA CON MORTERO CEMENTO-ARENA  EN PROPORCION 1:3. INCLUYE: MATERIALES, DESPERDICIOS, HERRAMIENTAS, LIMPIEZA, MANO DE OBRA Y ACARREO DE MATERIALES AL SITIO DE SU UTILIZACION.","M3 ","2.4000",0,"CERO PESOS 00/100 M.N.",0,254587]
[162116,"MAMPOSTERIA DE PIEDRA BRAZA, ACABADO APARENTE DOS CARAS DE 0 A 1.50 MTS, ASENTADA CON  CEMENTO-ARENA 1:3, INCLUYE: MATERIALES, HERRAMIENTAS, PLOMEO,  LIMPIEZA, MANO DE OBRA Y ACARREO DE MATERIALES AL SITIO DE SU UTILIZACION.","M3 ","1.2000",0,"CERO PESOS 00/100 M.N.",0,254589]
[162404,"NIVELACION DE MURO DE MAMPOSTERIA CON RAJUELA DE PIEDRA BRAZA JUNTEADA CON MORTERO CEM-ARE 1:3. DE 0.10 M. DE ESPESOR X 0.40 M. DE ANCHO PROMEDIO. INCLUYE: NIVELACION, TRAZO, MANO DE OBRA Y HERRAMIENTA. (NO INCLUYE MATERIALES)","ML ","4.7500",0,"CERO PESOS 00/100 M.N.",0,254591]
[166196,"SUMINISTRO Y FABRICACION DE ZAPATA DE 0.80 X 0.80 X 0.20 MTS DE PERALTE., FORJADA CON CONCRETO F'C= 250 KG/CM2., PARRILLA ARMADA CON 1VARILLA DEL # 3@20 CM. EN AMBAS DIRECCIONES FY= 4200 KG/CM2., INCLUYE: PLANTILLA DE CONCRETO SIMPLE F'C= 100 KG/CM2, CIMBRA COMUN, CURADO, COLADO, VIBRADO, ANCLAJE, PLOMEO Y ALINEADO DE COLUMNA, DESPERDICIOS, HERRAMIENTA, MANO DE OBRA, ACARREOS DE MATERIAL AL SITIO DE SU UTILIZACION Y TODO LO NECESARIO PARA SU CORRECTA EJECUCION.","PZA","1.9000",0,"CERO PESOS 00/100 M.N.",0,254593]
[180052,"RELLENO EN CEPAS POR CUALQUIER MEDIO, CON MATERIAL DE BANCO, (ARENA LIMOSA, TEPETATE, ETC.) COMPACTADO AL 90% PROCTOR, EN CAPAS DE 15 CM, MEDIDO COMPACTO. INCLUYE:  SUMINISTRO DE AGUA PARA LOGRAR HUMEDAD OPTIMA, DESPERDICIOS, TENDIDO, TRASPALEOS,  EQUIPO, PRUEBAS DE COMPACTACION, AFINE, NIVELACION, HERRAMIENTAS, MANO DE OBRA Y  ACARREO HASTA EL SITIO DE SU COLOCACION.  (VOLUMEN MEDIDO COMPACTADO).","M3 ","1.9000",0,"CERO PESOS 00/100 M.N.",0,254595]
[192812,"BASE PARA CASTILLO DE 40.0 X 40.0 X 50.0 CM, EN CIMENTACION DE PIEDRA, CON CONCRETO F'C=250 KG/CM2, TMA=3/4\", CON 4 VARILLAS DE #3 (3/8\") DE DIAMETRO Y ESTRIBOS DE #2 (1/4\") @ 20.0 CM. CIMBRA COMUN,  INCLUYE: CIMBRADO Y DESCIMBRADO, COLADO, VIBRADO, CURADO, MATERIALES, DESPERDICIOS, HERRAMIENTAS, LIMPIEZA, MANO DE OBRA Y ACARREO DE MATERIALES AL SITIO DE SU UTILIZACION.","PZA","2.0000",0,"CERO PESOS 00/100 M.N.",0,254598]
["33.04(200)","ESTRUCTURA                                        ",null,null,null,null,{"$f":"TEXT(SUM(G95:G98), \"$ #,##0.00 ;\")","v":"$ 0.00 "}]
[173003,"SUMINISTRO, HABILITADO, ARMADO Y COLOCACION DE ACERO DE REFUERZO FY=4,200 KG/CM2 (G.E.), DE 3/8\" ( #3 ), EN CIMENTACION, INCLUYE: MATERIALES, HABILITADO,  DOBLECES,  SILLETAS, ALAMBRE, GANCHOS, ESCUADRAS, TRASLAPES, DESPERDICIOS HERRAMIENTAS, MANO DE OBRA Y ACARREO DE MATERIALES AL SITIO DE SU COLOCACION.","KG ","15.9000",0,"CERO PESOS 00/100 M.N.",0,254599]
[173004,"SUMINISTRO, HABILITADO, ARMADO Y COLOCACION DE ACERO DE REFUERZO FY=4,200 KG/CM2 (G.E.), DE 1/2\" ( #4 ), EN CIMENTACION, INCLUYE: MATERIALES, HABILITADO,  DOBLECES,  SILLETAS, ALAMBRE, GANCHOS, ESCUADRAS, TRASLAPES, DESPERDICIOS HERRAMIENTAS, MANO DE OBRA Y ACARREO DE MATERIALES AL SITIO DE SU COLOCACION.","KG ","15.9000",0,"CERO PESOS 00/100 M.N.",0,254600]
[210334,"CIMBRA DE MADERA,  ACABADO APARENTE, EN ESTRUCTURA (MUROS, COLUMNAS, TRABES Y LOSAS), CON CIMBRAPLAY DE 16 MM. INCLUYE: DESPERDICIO, HABILITADO, CIMBRADO Y DESCIMBRA, NIVELACION, PLOMEO MATERIAL, MANO DE OBRA , HERRAMIENTA, ACARREO DEL MATRIAL DENTRO Y FUERA DE LA OBRA.","M2 ","3.2000",0,"CERO PESOS 00/100 M.N.",0,254601]
[216401,"SUMINISTRO Y COLOCACION DE CONCRETO HECHO EN OBRA, F'C=200 KG/CM2, T.M.A.= 3/4, R.N., EN ESTRUCTURA (COLUMNAS, TRABES, LOSAS, FALDONES, ETC), INCLUYE: MATERIALES, COLADO, AFINE, ACABADO, CURADO CON CURACRETO ROJO, VIBRADO, DESPERDICIO, HERRAMIENTAS, LIMPIEZA, MANO DE OBRA. A CUALQUIER NIVEL.","M3 ","0.8000",0,"CERO PESOS 00/100 M.N.",0,254602]
["33.05(310)","MUROS, CADENAS, CASTILLOS Y REPIZONES.            ",null,null,null,null,{"$f":"TEXT(SUM(G100:G102), \"$ #,##0.00 ;\")","v":"$ 0.00 "}]
[310867,"DALA DE CONCRETO F'C=150 KG/CM2, T.M.A.=3/4\", CON SECCION DE 14 X 20 CMS., ARMADA CON 4 VARILLAS DEL # 3 Y ESTRIBOS DEL NO. 2 @ 15 CMS., INCLUYE: ARMADO, COLADO, CURADO, VIBRADO, CIMBRA APARENTE, DESCIMBRA, TRASLAPES, CRUCES DE VARILLAS CON ELEMENTOS TRANSVERSALES, DESPERDICIOS, MANO DE OBRA, HERRAMIENTA Y ACARREO DE MATERIALES AL SITIO DE SU UTILIZACION, A CUALQUIER ALTURA.","ML ","9.5500",0,"CERO PESOS 00/100 M.N.",0,254604]
[312244,"CASTILLO DE CONCRETO F'C=150 KG/CM2, T.M.A.=3/4, CON SECCION DE 14 X 20 CMS., ARMADA CON 4 VARILLAS DEL # 3 Y ESTRIBOS DEL NO. 2 @ 20 CMS., INCLUYE:  ARMADO, COLADO, CURADO, VIBRADO, CIMBRA COMUN, DESCIMBRA, TRASLAPES, CRUCES DE VARILLAS CON ELEMENTOS TRANSVERSALES, DESPERDICIOS, MANO DE OBRA, HERRAMIENTA, ANDAMIOS,  Y ACARREO DE MATERIALES AL SITIO DE SU UTILIZACION, A CUALQUIER ALTURA.","ML ","4.7500",0,"CERO PESOS 00/100 M.N.",0,254605]
[314032,"MURO DE TABIQUE DE LAMA, DE 14 CMS. DE ESPESOR PROMEDIO, A SOGA, CON TABIQUE DE LAMA 7 X 14 X 28 CMS., ACABADO COMUN, ASENTADO CON MORTERO CEMENTO-ARENA EN PROPORCION 1:3, EN CUALQUIER NIVEL, INCLUYE: TRAZO, NIVELACION, PLOMEO, ANDAMIOS, DESPERDICIOS, MANO DE OBRA, LIMPIEZA Y ACARREO DE MATERIALES AL SITIO DE SU UTILIZACION.","M2 ","10.5000",0,"CERO PESOS 00/100 M.N.",0,254606]
["33.06(355)","RECUBRIMIENTOS Y ACABADOS                         ",null,null,null,null,{"$f":"TEXT(SUM(G104:G106), \"$ #,##0.00 ;\")","v":"$ 0.00 "}]
[355022,"APLANADO DE MUROS Y/O TECHOS CON MORTERO CEMENTO-CAL-ARENA DE RIO EN PROP. 1:2:6 DE 2 CM. DE ESPESOR PROMEDIO, A PLOMO Y REGLA, ACABADO APALILLADO FINO, INCLUYE: MATERIALES, DESPERDICIOS, ANDAMIOS, HERRAMIENTAS, PLOMEO, NIVELACION, REMATES, LIMPIEZA DEL AREA DE TRABAJO Y ACARREO DE MATERIALES AL SITIO DE SU UTILIZACION. A CUALQUIER NIVEL.\n","M2 ","23.8500",0,"CERO PESOS 00/100 M.N.",0,254607]
[357322,"BOQUILLAS EN PUERTAS Y VENTANAS, CON MORTERO CEMENTO-CAL-ARENA 1:2:6, INCLUYE: ANDAMIOS Y ACARREO DE MATERIALES AL SITIO DE SU UTILIZACION.","ML ","4.7500",0,"CERO PESOS 00/100 M.N.",0,254608]
[357352,"FILETES Y BOLEADOS, HECHOS CON MORTERO CEMENTO-CAL-ARENA EN PROPORCION 1:2:6, INCLUYE: DESPERDICIOS, ANDAMIOS Y ACARREO DE MATERIALES AL SITIO DE SU UTILIZACION, A CUALQUIER NIVEL.","ML ","4.7500",0,"CERO PESOS 00/100 M.N.",0,254609]
["33.07(393)","PINTURA                                           ",null,null,null,null,{"$f":"TEXT(SUM(G108:G109), \"$ #,##0.00 ;\")","v":"$ 0.00 "}]
[393022,"PINTURA VINIL-ACRÍLICA A BASE DE AGUA ACABADO SEMIMATE  LAVABLE, PARA INTERIORES Y EXTERIORES QUE NO DESPRENDA VAPORES TÓXICOS NI OLORES DESAGRADABLES, CON LAS SIGUIENTES CARACTERÍSTICAS ( SÓLIDOS POR PESO 46-52%, SÓLIDOS POR VOLUMEN 30-36%, VISCOSIDAD DE 100-130 UK A 25°C, DENSIDAD > O = 1.2 TON/M3., LAVABILIDAD > O = 4,000 CICLOS, TIEMPO DE SECADO AL TACTO, 30-40 MIN., TIEMPO DE SECADO DURO < O = 8 HRS., CICLO DE CURADO DE 7 DIAS, PH 6-8, RENDIMIENTO EN SUP. LISA 8-10 M2/LT., FINEZA DE MOLIDO (HEGMAN) 3-7 UH.)  EN MUROS APLANADOS DE MEZCLA APALILLADO O PULIDO, TRABAJO TERMINADO, A DOS MANOS, INCLUYE: MATERIALES MENORES Y DE CONSUMO, ANDAMIOS, PREPARACION DE LA SUPERFICIE, SELLADO DE LA SUPERFICIE, HERRAMIENTAS, LIMPIEZA, MANO DE OBRA Y  ACARREOS DE MATERIALES AL SITIO DE SU UTILIZACIÓN.","M2 ","23.8500",0,"CERO PESOS 00/100 M.N.",0,254612]
[393122,"PINTURA DE ESMALTE ALQUIDALICO ANTICORROSIVO, ACABADO BRILLANTE, PARA INTERIORES Y EXTERIORES QUE NO DESPRENDA VAPORES TÓXICOS NI OLORES DESAGRADABLES, CON LAS SIGUIENTES CARACTERÍSTICAS ( SÓLIDOS POR PESO 49-60%, SÓLIDOS POR VOLUMEN 40-46%, VISCOSIDAD DE 110-160 UK A 25°C, DENSIDAD 0.9-1.2 TON/M3., BRILLO A 60°C, 90%, TIEMPO DE SECADO AL TACTO, < O = 6 HRS., TIEMPO DE SECADO DURO < O = 24 HRS., ADHERENCIA 100%, RENDIMIENTO EN SUP. LISA 8-10 M2/LT., DILUCIÓN MÁXIMA (AGUARRÁS, THINER), 15 %,  EN HERRERIA CERRADA (DUELA DE LAMINA ACANALADA), TRABAJO TERMINADO, A DOS MANOS, INCLUYE: MATERIALES MENORES Y DE CONSUMO, ANDAMIOS, PREPARACION DE LA SUPERFICIE, HERRAMIENTAS, LIMPIEZA, MANO DE OBRA Y  EQUIPO DE SEGURIDAD. A CUALQUIER NIVEL.","M2 ","80.2000",0,"CERO PESOS 00/100 M.N.",0,254613]
["33.08(410)","CANCELERIA, HERRERIA, ALUMINIO, VIDRIOS Y CHAPAS  ",null,null,null,null,{"$f":"TEXT(SUM(G111:G111), \"$ #,##0.00 ;\")","v":"$ 0.00 "}]
[412012,"SUMINISTRO, FABRICACION Y COLOCACION DE HERRERIA A BASE DE PERFILES ESTRUCTURALES (ANGULOS, PTR, SOLERAS, PLACAS, REDONDOS SOLIDOS, CUADRADOS SOLIDOS, TEE, ETC) DE DIFERENTES MEDIDAS Y CALIBRES,   INCLUYE: TRAZO, SOLDADURA, CORTES, AJUSTES, MATERIALES MENORES Y DE CONSUMO, DESCALIBRES, DESPERDICIOS, BISAGRAS, PASADORES, LIMPIEZA,  FONDO ANTICORROSIVO, FLETES, HERRAMIENTAS, MANO DE OBRA, Y ACARREO DE MATERIALES AL SITIO DE SU UTLIZACION.","KG ","286.0000",0,"CERO PESOS 00/100 M.N.",0,254617]
["01","PLAZA Y ANDADORES",null,null,null,null,{"$f":"TEXT(SUM(G113 + G115 + G117), \"$ #,##0.00 ;\")","v":"$ 0.00 "}]
["01.01(140)","DEMOLICIONES, DESMONTAJES Y MECANICA DE SUELOS    ",null,null,null,null,{"$f":"TEXT(SUM(G114:G114), \"$ #,##0.00 ;\")","v":"$ 0.00 "}]
[140663,"DEMOLICION DE PISO DE CONCRETO DE 10 CM. ESPESOR, INCLUYE:  CORTE CON DISCO PARA DELIMITAR AREA,MATERIAL, EQUIPO, HERRAMIENTA, ACARREOS Y RETIROS FUERA DE LA OBRA DEL MATERIAL PRODUCTO DE LA DEMOLICION.","M2 ","100.0000",0,"CERO PESOS 00/100 M.N.",0,254578]
["01.02(160)","CIMENTACION                                       ",null,null,null,null,{"$f":"TEXT(SUM(G116:G116), \"$ #,##0.00 ;\")","v":"$ 0.00 "}]
[180030,"AFINE Y NIVELACION DE TERRENO EN AREA DE FIRME PARA PISO EN FORMA MECANICA, CON PLACA VIBRATORIA, CAMPACTADA AL 90% PROCTOR,  INCLUYE: SUMINISTRO DE AGUA PARA LOGRAR HUMEDAD OPTIMA, EQUIPO, PRUEBAS DE COMPACTACION, AFINE, NIVELACION, HERRAMIENTAS Y  MANO DE OBRA.","M2 ","101.0000",0,"CERO PESOS 00/100 M.N.",0,254594]
["01.03(372)","PISOS                                             ",null,null,null,null,{"$f":"TEXT(SUM(G118:G118), \"$ #,##0.00 ;\")","v":"$ 0.00 "}]
[373026,"PISO DE CONCRETO HECHO EN OBRA F'C=200 KG/CM2, TMA 3/4\", DE 10 CMS. DE ESPESOR, ACABADO RAYADO CON BROCHA, EN FORMA INTERGRAL, SIN UTILIZACION DE PASTA, COLADO A CUADROS, CON REFUERZO DE MALLA ELECTROSOLDADA 6-6 / 10-10, INCLUYE: TRAZO, NIVELACION, AFINE Y COMPACTACION DEL TERRENO, MATERIALES, CIMBRA DE FRONTERA, DESCIMBRA, DESPERDICIOS, CURADO, VIBRADO, MUESTREADO, JUNTAS FRIAS, VOLTEADOR,  HERRAMIENTAS, MANO DE OBRA Y ACARREOS DE MATERIALES AL SITIO DE SU UTILIZACION.","M2 ","100.0000",0,"CERO PESOS 00/100 M.N.",0,254610]
[69,"RAMPAS",null,null,null,null,{"$f":"TEXT(SUM(G120 + G126 + G132 + G134 + G136 + G138 + G140), \"$ #,##0.00 ;\")","v":"$ 0.00 "}]
["69.01(150)","TRABAJOS PRELIMINARES                             ",null,null,null,null,{"$f":"TEXT(SUM(G121:G125), \"$ #,##0.00 ;\")","v":"$ 0.00 "}]
[150020,"LIMPIEZA DE TERRENO RETIRANDO BASURA Y DESHIERBE FUERA DE LA OBRA. INCLUYE: HERRAMIENTAS, MANO DE OBRA, RECOLECCION, JUNTA Y RETIRO. (PROYECCION DE CUBIERTA).","M2 ","15.0000",0,"CERO PESOS 00/100 M.N.",0,254579]
[150120,"TRAZO Y NIVELACION DE EXTERIORES ESTABLECIENDO REFERENCIAS DEFINITIVAS, CON TRANSITO Y NIVEL (EQUIPO TOPOGRAFICO), INCLUYE: PERSONAL TECNICO CALIFICADO, ESTACAS, MOJONERAS, LOCALIZACION DE EJES Y/O ENTRE EJES, BANCOS DE NIVEL, MATERIALES PARA SEÑALAMIENTO, EQUIPO, HERRAMIENTA Y MANO DE OBRA.","M2 ","15.0000",0,"CERO PESOS 00/100 M.N.",0,254581]
[150210,"DESPALME DE TERRENO NATURAL POR CUALQUIER MEDIO, CON ESPESOR PROMEDIO DE 20 CM. INCLUYE: CARGA Y ACARREO DEL PRODUCTO FUERA DE LA OBRA, MANO DE OBRA, HERRAMIENTA Y EQUIPO. (PROYECCION DE CUBIERTA).","M2 ","15.0000",0,"CERO PESOS 00/100 M.N.",0,254582]
[152404,"EXCAVACION A CIELO ABIERTO EN CAJON POR CUALQUIER MEDIO, MATERIAL TIPO \"B\", DE 0 A 2.00 M. DE PROFUNDIDAD, EN SECO, INCLUYE: AFINE DE TALUDES Y FONDO, TRAPALEOS,  MOVIMIENTOS Y ACARREOS DENTRO DE LA OBRA, HERRAMIENTAS Y MANO DE OBRA, MEDIDO EN BANCO.","M3 ","2.3000",0,"CERO PESOS 00/100 M.N.",0,254584]
[156002,"CARGA POR CUALQUIER MEDIO Y ACARREO EN CAMION DE MATERIAL DE DESPERDICIO PRODUCTO DE LAS EXCAVACIONES FUERA DE LA OBRA, A LUGAR PERMITIDO POR LAS AUTORIDADES CORRESPONDIENTES, MEDIDO EN BANCO. INCLUYE CARGA,  ACARREO Y DESCARGA A TIRO LIBRE, HERRAMIENTA, EQUIPO, MATERIALES DE CONSUMO Y MANO DE OBRA.","M3 ","2.3000",0,"CERO PESOS 00/100 M.N.",0,254586]
["69.02(160)","CIMENTACION                                       ",null,null,null,null,{"$f":"TEXT(SUM(G127:G131), \"$ #,##0.00 ;\")","v":"$ 0.00 "}]
[162002,"CIMIENTO DE PIEDRA BRAZA ACOMODADA PIEDRA POR PIEDRA, ASENTADA CON MORTERO CEMENTO-ARENA  EN PROPORCION 1:3. INCLUYE: MATERIALES, DESPERDICIOS, HERRAMIENTAS, LIMPIEZA, MANO DE OBRA Y ACARREO DE MATERIALES AL SITIO DE SU UTILIZACION.","M3 ","3.2000",0,"CERO PESOS 00/100 M.N.",0,254588]
[162302,"RODAPIE DE PIEDRA BRAZA, ACABADO APARENTE UNA CARA, ASENTADA CON MORTERO CEMENTO-ARENA 1:3. INCLUYE: MATERIALES, HERRAMIENTAS, PLOMEO,   LIMPIEZA, MANO DE OBRA Y ACARREO DE MATERIALES AL SITIO DE SU UTILIZACION.","M3 ","2.0000",0,"CERO PESOS 00/100 M.N.",0,254590]
[162404,"NIVELACION DE MURO DE MAMPOSTERIA CON RAJUELA DE PIEDRA BRAZA JUNTEADA CON MORTERO CEM-ARE 1:3. DE 0.10 M. DE ESPESOR X 0.40 M. DE ANCHO PROMEDIO. INCLUYE: NIVELACION, TRAZO, MANO DE OBRA Y HERRAMIENTA. (NO INCLUYE MATERIALES)","ML ","20.0000",0,"CERO PESOS 00/100 M.N.",0,254592]
[180102,"RELLENO COMPACTADO AL 90 % PROCTOR, CON MATERIAL DE BANCO, EN CAPAS DE 20 CM DE ESPESOR, AGREGANDO AGUA PARA LOGRAR SU HUMEDAD OPTIMA, AL 90%. POR CUALQUIER MEDIO, INCLUYE: SUMINISTRO DE AGUA PARA LOGRAR HUMEDAD OPTIMA, TENDIDO, TRASPALEOS,  DESPERDICIOS, EQUIPO, PRUEBAS DE COMPACTACION, AFINE, NIVELACION, HERRAMIENTAS, MANO DE OBRA Y  ACARREO HASTA EL SITIO DE SU COLOCACION.  (VOLUMEN MEDIDO COMPACTADO).","M3 ","5.3000",0,"CERO PESOS 00/100 M.N.",0,254596]
[192360,"SUMINISTRO E INSTALACION DE CASQUILLO A BASE DE PTR DE 2 1/2\" X 2 1/2\" BLANCO,  Y 10 CM DE LONGITUD APROXIMADA, PARA RICIBIR DE BARANDAL METALICO,  AHOGADO EN LOSA DE CONCRETO, INCLUYE: TRAZO, CORTES, AJUSTES, NIVELACION, MATERIALES, HERRAMIENTAS,  LIMPIEZA Y MANO DE OBRA.","PZA","18.0000",0,"CERO PESOS 00/100 M.N.",0,254597]
["69.03(310)","MUROS, CADENAS, CASTILLOS Y REPIZONES.            ",null,null,null,null,{"$f":"TEXT(SUM(G133:G133), \"$ #,##0.00 ;\")","v":"$ 0.00 "}]
[310512,"DALA DE CONCRETO F'C=150 KG/CM2, T.M.A.=3/4\", CON SECCION DE 10 X 12 CMS., SIN ARMAR, INCLUYE: COLADO, CURADO, VIBRADO, CIMBRA APARENTE, DESCIMBRA, DESPERDICIOS, MANO DE OBRA, HERRAMIENTA, LIMPIEZA DEL AREA DE TRABAJO Y ACARREO DE MATERIALES AL SITIO DE SU UTILIZACION, A CUALQUIER ALTURA.","ML ","20.0000",0,"CERO PESOS 00/100 M.N.",0,254603]
["69.04(372)","PISOS                                             ",null,null,null,null,{"$f":"TEXT(SUM(G135:G135), \"$ #,##0.00 ;\")","v":"$ 0.00 "}]
[375242,"FORJADO DE RAMPA PARA MINUSVALIDOS FABRICADO A BASE DE CONCRETO F'C=150 KG/CM2. T.M.A. 3/4\" HECHO EN OBRA DE 0.10 MT. DE ESPESOR  PROMEDIO DANDO PENDIENTE DEL 6%. INCLUYE: HERRAMIENTAS, ACABADO RAYADO,  CIMBRA DESCIMBRA, MANO DE OBRA, REMATE EN PISO Y BANQUETA, ACARREO DEL  MATERIALES AL SITIO DE SU UTILIZACION.","M2 ","15.0000",0,"CERO PESOS 00/100 M.N.",0,254611]
["69.05(393)","PINTURA                                           ",null,null,null,null,{"$f":"TEXT(SUM(G137:G137), \"$ #,##0.00 ;\")","v":"$ 0.00 "}]
[393324,"PINTURA DE ESMALTE ALQUIDALICO ANTICORROSIVO, ACABADO BRILLANTE, PARA INTERIORES Y EXTERIORES QUE NO DESPRENDA VAPORES TÓXICOS NI OLORES DESAGRADABLES, CON LAS SIGUIENTES CARACTERÍSTICAS ( SÓLIDOS POR PESO 49-60%, SÓLIDOS POR VOLUMEN 40-46%, VISCOSIDAD DE 110-160 UK A 25°C, DENSIDAD 0.9-1.2 TON/M3., BRILLO A 60°C, 90%, TIEMPO DE SECADO AL TACTO, < O = 6 HRS., TIEMPO DE SECADO DURO < O = 24 HRS., ADHERENCIA 100%, RENDIMIENTO EN SUP. LISA 8-10 M2/LT., DILUCIÓN MÁXIMA (AGUARRÁS, THINER), 15 %,   EN TUBO DE FIERRO NEGRO DE 2\" DE DIÁMETRO, (POSTES, PASAMANOS, BARANDALES, ESTRUCTURAS, REDES, ETC.), TRABAJO TERMINADO, A DOS MANOS, INCLUYE: MATERIALES MENORES Y DE CONSUMO, PREPARACION DE LA SUPERFICIE, ANDAMIOS, HERRAMIENTAS, LIMPIEZA, MANO DE OBRA Y  EQUIPO DE SEGURIDAD. CUALQUIER ALTURA.","ML ","84.0000",0,"CERO PESOS 00/100 M.N.",0,254614]
["69.06(396)","LIMPIEZA                                          ",null,null,null,null,{"$f":"TEXT(SUM(G139:G139), \"$ #,##0.00 ;\")","v":"$ 0.00 "}]
[396012,"LIMPIEZA DE PISOS DE CONCRETO CON AGUA Y ACIDO MURIATICO AL 10%.","M2 ","15.0000",0,"CERO PESOS 00/100 M.N.",0,254615]
["69.07(410)","CANCELERIA, HERRERIA, ALUMINIO, VIDRIOS Y CHAPAS  ",null,null,null,null,{"$f":"TEXT(SUM(G141:G141), \"$ #,##0.00 ;\")","v":"$ 0.00 "}]
[412006,"SUMINISTRO, FABRICACION Y COLOCACION DE HERRERIA TUBULAR Y/O ESTRUCTURAL PARA BARANDAL O PASAMANOS,  INCLUYE: SOLDADURA, CORTES, AJUSTES, MATERIALES MENORES, DESCALIBRES, DESPERDICIOS, BISAGRAS, FONDO ANTICORROSIVO, FLETES, HERRAMIENTAS, MANO DE OBRA, Y ACARREO DE MATERIALES AL SITIO DE SU UTLIZACION.","KG ","179.0000",0,"CERO PESOS 00/100 M.N.",0,254616]
["02","RED ELECTRICA",null,null,null,null,{"$f":"TEXT((G143), \"$ #,##0.00 ;\")","v":"$ 0.00 "}]
["02.01(511)","INSTALACION ELECTRICA EN OBRA EXTERIOR            ",null,null,null,null,{"$f":"TEXT(SUM(G144:G174), \"$ #,##0.00 ;\")","v":"$ 0.00 "}]
[534004,"SUMINISTRO Y TENDIDO DE TUBO CONDUIT DE P.V.C. PESADO, DE 19 MM DIAM. INCLUYE: CONEXIONES, TRAZO, EXCAVACION, RELLENO, DESPERDICIOS, MATERIALES MENORES, PRUEBAS Y ACARREO AL SITIO DE SU COLOCACION.","ML ","20.0000",0,"CERO PESOS 00/100 M.N.",0,254618]
[534006,"SUMINISTRO Y TENDIDO DE TUBO CONDUIT DE P.V.C. PESADO, DE 25 MM DIAM. INC.: CONEXIONES, TRAZO, EXCAVACION, RELLENO, DESPERDICIOS, MATERIALES MENORES, PRUEBAS Y ACARREO AL SITIO DE SU COLOCACION.","ML ","30.0000",0,"CERO PESOS 00/100 M.N.",0,254619]
[534008,"SUMINISTRO Y TENDIDO DE TUBO CONDUIT DE P.V.C. PESADO, DE 32 MM DIAM. INC.: CONEXIONES, TRAZO, EXCAVACION, RELLENO, DESPERDICIOS, MATERIALES MENORES, PRUEBAS Y ACARREO AL SITIO DE SU COLOCACION.","ML ","30.0000",0,"CERO PESOS 00/100 M.N.",0,254620]
[534010,"SUMINISTRO Y TENDIDO DE TUBO CONDUIT DE P.V.C. PESADO, DE 38 MM DIAM. INC.: CONEXIONES, TRAZO, EXCAVACION, RELLENO, DESPERDICIOS, MATERIALES MENORES, PRUEBAS Y ACARREO AL SITIO DE SU COLOCACION.","ML ","10.0000",0,"CERO PESOS 00/100 M.N.",0,254621]
[534012,"SUMINISTRO Y TENDIDO DE TUBO CONDUIT DE P.V.C. PESADO, DE 50 MM DIAM. INC.: CONEXIONES, TRAZO, EXCAVACION, RELLENO, DESPERDICIOS, MATERIALES MENORES, PRUEBAS Y ACARREO AL SITIO DE SU COLOCACION.","ML ","200.0000",0,"CERO PESOS 00/100 M.N.",0,254622]
[534014,"SUMINISTRO Y TENDIDO DE TUBO CONDUIT DE P.V.C. PESADO, DE 64 MM DIAM. INC.: CONEXIONES, TRAZO, EXCAVACION, RELLENO, DESPERDICIOS, MATERIALES MENORES, PRUEBAS Y ACARREO AL SITIO DE SU COLOCACION.","ML ","10.0000",0,"CERO PESOS 00/100 M.N.",0,254623]
[534059,"SUMINISTRO Y COLOCACION DE CURVA CONDUIT DE PVC PESADO  DE 19 MM.  DE DIAM.  INCLUYE: MATERIALES MENORES Y DE CONSUMO, HERRAMIENTAS, PRUEBAS,  DESPERDICIOS, MANO DE OBRA Y ACARREOS AL SITIO DE SU COLOCACION.","PZA","3.0000",0,"CERO PESOS 00/100 M.N.",0,254624]
[536010,"SUMINISTRO Y COLOCACION DE CABLE VINANEL THW-LS 600 V. A 75° C, 90° C, MARCA CONDUCTORES MONTERREY, (VIAKON-PROTOCOLIZADO), CABLE VINANEL 21 THW-LS 600 V. A 75° C, 90° C, MARCA CONDUMEX (CONDUMEX PROTOCOLIZADO). CAL. 8,  INCLUYE: DESPERDICIOS, MATERIALES MENORES, HERRAMIENTA, CONEXIONES, MANO DE OBRA ESPECIALIZADA, LIMPIEZA DEL AREA DE TRABAJO, PRUEBAS Y ACARREO AL SITIO DE SU COLOCACION.","ML ","100.0000",0,"CERO PESOS 00/100 M.N.",0,254625]
[536012,"SUMINISTRO Y COLOCACION DE CABLE VINANEL THW-LS 600 V. A 75° C, 90° C, MARCA CONDUCTORES MONTERREY, (VIAKON-PROTOCOLIZADO), CABLE VINANEL 21 THW-LS 600 V. A 75° C, 90° C, MARCA CONDUMEX (CONDUMEX PROTOCOLIZADO). CAL. 6,  INCLUYE: DESPERDICIOS, MATERIALES MENORES, HERRAMIENTA, CONEXIONES, MANO DE OBRA ESPECIALIZADA, LIMPIEZA DEL AREA DE TRABAJO, PRUEBAS Y ACARREO AL SITIO DE SU COLOCACION.","ML ","99.0000",0,"CERO PESOS 00/100 M.N.",0,254626]
[536014,"SUMINISTRO Y COLOCACION DE CABLE VINANEL THW-LS 600 V. A 75° C, 90° C, MARCA CONDUCTORES MONTERREY, (VIAKON-PROTOCOLIZADO), CABLE VINANEL 21 THW-LS 600 V. A 75° C, 90° C, MARCA CONDUMEX (CONDUMEX PROTOCOLIZADO). CAL. 4,  INCLUYE: DESPERDICIOS, MATERIALES MENORES, HERRAMIENTA, CONEXIONES, MANO DE OBRA ESPECIALIZADA, LIMPIEZA DEL AREA DE TRABAJO, PRUEBAS Y ACARREO AL SITIO DE SU COLOCACION.","ML ","34.0000",0,"CERO PESOS 00/100 M.N.",0,254627]
[536016,"SUMINISTRO Y COLOCACION DE CABLE VINANEL THW-LS 600 V. A 75° C, 90° C, MARCA CONDUCTORES MONTERREY, (VIAKON-PROTOCOLIZADO), CABLE VINANEL 21 THW-LS 600 V. A 75° C, 90° C, MARCA CONDUMEX (CONDUMEX PROTOCOLIZADO). CAL. 2,  INCLUYE: DESPERDICIOS, MATERIALES MENORES, HERRAMIENTA, CONEXIONES, MANO DE OBRA ESPECIALIZADA, LIMPIEZA DEL AREA DE TRABAJO, PRUEBAS Y ACARREO AL SITIO DE SU COLOCACION.","ML ","100.0000",0,"CERO PESOS 00/100 M.N.",0,254628]
[536018,"SUMINISTRO Y COLOCACION DE CABLE VINANEL THW-LS 600 V. A 75° C, 90° C, MARCA CONDUCTORES MONTERREY, (VIAKON-PROTOCOLIZADO), CABLE VINANEL 21 THW-LS 600 V. A 75° C, 90° C, MARCA CONDUMEX (CONDUMEX PROTOCOLIZADO). CAL. 1/0,  INCLUYE: DESPERDICIOS, MATERIALES MENORES, HERRAMIENTA, CONEXIONES, MANO DE OBRA ESPECIALIZADA, LIMPIEZA DEL AREA DE TRABAJO, PRUEBAS Y ACARREO AL SITIO DE SU COLOCACION.","ML ","50.0000",0,"CERO PESOS 00/100 M.N.",0,254629]
[536022,"SUMINISTRO Y COLOCACION DE CABLE VINANEL THW-LS 600 V. A 75° C, 90° C, MARCA CONDUCTORES MONTERREY, (VIAKON-PROTOCOLIZADO), CABLE VINANEL 21 THW-LS 600 V. A 75° C, 90° C, MARCA CONDUMEX (CONDUMEX PROTOCOLIZADO). CAL. 3/0,  INCLUYE: DESPERDICIOS, MATERIALES MENORES, HERRAMIENTA, CONEXIONES, MANO DE OBRA ESPECIALIZADA, LIMPIEZA DEL AREA DE TRABAJO, PRUEBAS Y ACARREO AL SITIO DE SU COLOCACION.","ML ","1.0000",0,"CERO PESOS 00/100 M.N.",0,254630]
[536129,"SUMINISTRO Y COLOCACION DE CURVA CONDUIT DE PVC PESADO  DE 64 MM.  DE DIAM.  INCLUYE: MATERIALES MENORES Y DE CONSUMO, HERRAMIENTAS, PRUEBAS,  DESPERDICIOS, MANO DE OBRA Y ACARREOS AL SITIO DE SU COLOCACION.","PZA","1.0000",0,"CERO PESOS 00/100 M.N.",0,254631]
[536130,"SUMINISTRO Y COLOCACION DE CURVA CONDUIT DE PVC PESADO  DE 51 MM.  DE DIAM.  INCLUYE: MATERIALES MENORES Y DE CONSUMO, HERRAMIENTAS, PRUEBAS,  DESPERDICIOS, MANO DE OBRA Y ACARREOS AL SITIO DE SU COLOCACION.","PZA","3.0000",0,"CERO PESOS 00/100 M.N.",0,254632]
[536131,"SUMINISTRO Y COLOCACION DE CURVA CONDUIT DE PVC PESADO  DE 32 MM.  DE DIAM.  INCLUYE: MATERIALES MENORES Y DE CONSUMO, HERRAMIENTAS, PRUEBAS,  DESPERDICIOS, MANO DE OBRA Y ACARREOS AL SITIO DE SU COLOCACION.","PZA","3.0000",0,"CERO PESOS 00/100 M.N.",0,254633]
[536141,"SUMINISTRO Y COLOCACION DE CURVA CONDUIT DE PVC PESADO  DE 25 MM.  DE DIAM.  INCLUYE: MATERIALES MENORES Y DE CONSUMO, HERRAMIENTAS, PRUEBAS,  DESPERDICIOS, MANO DE OBRA Y ACARREOS AL SITIO DE SU COLOCACION.","PZA","2.0000",0,"CERO PESOS 00/100 M.N.",0,254634]
[536143,"SUMINISTRO Y COLOCACION DE CURVA CONDUIT DE PVC PESADO  DE 38 MM.  DE DIAM.  INCLUYE: MATERIALES MENORES Y DE CONSUMO, HERRAMIENTAS, PRUEBAS,  DESPERDICIOS, MANO DE OBRA Y ACARREOS AL SITIO DE SU COLOCACION.","PZA","1.0000",0,"CERO PESOS 00/100 M.N.",0,254635]
[540044,"SUMINISTRO Y COLOCACION DE CENTRO DE CARGA TRIFASICO, MARCA SQUARE- D TIPO QO320L125G, 20 POLOS, 125 A. CON ZAPATAS, INCLUYE: CONEXIONES, MATERIALES MENORES Y DE CONSUMO, PRUEBAS, FLETES, HERRAMIENTAS, IDENTIFICACION DE CIRCUITOS, LIMPIEZA YMANO DE OBRA CALIFICADA.","PZA","5.0000",0,"CERO PESOS 00/100 M.N.",0,254636]
[540071,"SUMINISTRO E INSTALACION DE TABLERO DE ALUMBRADO Y DISTRIBUCION TRIFASICO CAT. NQ-304-AB-225, 3F, 4H, MCA. SQD. CON INTERRUPTOR PRINCIPAL DE 3 X 125 A 225 AMP. (KAL-36125-225), INCLUYE: ELEMENTOS DE  FIJACION, MANO DE OBRA, MATERIALES MENORES, HERRAMIENTA, PRUEBAS, FLETES, Y ACARREO DE LOS MATERIALES AL SITIO DE SU COLOCACION.","PZA","1.0000",0,"CERO PESOS 00/100 M.N.",0,254637]
[544222,"SUMINISTRO E INSTALACION DE ARRANCADOR MANUAL MONOFASICO EN GABINETE DE USOS GENERALES NEMA 1, MCA. SQUARE D, CLASE 2510 , CAT. FG1, 1F,  INCLUYE: MATERIALES MENORES Y DE CONSUMO, HERRAMIENTAS, ELEMENTOS DE FIJACION, PRUEBAS, MONO DE OBRA ESPECIALIZADA Y ACARREO DE MATERIALES AL SITIO DE SU COLOCACION.","PZA","1.0000",0,"CERO PESOS 00/100 M.N.",0,254638]
[552022,"SUMINISTRO E INSTALACION DE FOTOCELDA CON BASE DE 1000 WATTS. 220 VOLTS.  INC.: MATERIALES MENORES, PRUEBAS Y ACARREO DE MATERIALES AL SITIO DE SU COLOCACION.","PZA","5.0000",0,"CERO PESOS 00/100 M.N.",0,254639]
[555022,"SUMINISTRO Y COLOCACION DE POSTE DE FIERRO CONICO CIRCULAR DE 6.00 MTS. DE ALTURA CON PINTURA ANTICORROSIVA Y PINTURA DE ESMALTE DE ACABADO EN COLOR VERDE JARDIN, INCLUYE; BASE DE CONCRETO F'C=200 KG/CM2 TRAPEZOIDAL DE 60 X 60 CMS. DE BASE INFERIOR, 40 X 40 CMS, BASE SUPERIOR, Y 80 CMS. DE ALTURA, ANCLAS, Y REGISTRO ELECTRICO DE CONCRETO PREFABRICADA DE 33 X 33 X 40 CM. INTERCONECTADO A BASE Y POSTE CON TUBO DE P.V.C. PESADO DE 25 MM. DE DIAMETRO,  CABLE VINANEL THW-LS 600 V. A 75° C, 90° C, MARCA CONDUCTORES MONTERREY, (VIAKON-PROTOCOLIZADO), CABLE VINANEL 21 THW-LS 600 V. A 75° C, 90° C, MARCA CONDUMEX (CONDUMEX PROTOCOLIZADO).  CAL. 10, MATERIALES MENORES, PRUEBAS Y ACARREO DEL MATERIAL AL SITIO DE SU COLOCACION.","PZA","1.0000",0,"CERO PESOS 00/100 M.N.",0,254640]
[558522,"SUMINISTRO Y COLOCACION DE VARILLA DE TIERRA COOPERWELD, DE 3.00 M X 19 MM DE DIAM.  INCLUYE: UNA  CARGA CADWELD NO. 90, CONECTOR COOPER WELD, SOLDADURA CADWELD NO. 90, PARTE PROPORCIONAL DE MOLDE 161V.,  MATERIALES MENORES, PRUEBAS Y ACARREO AL SITIO DE SU COLOCACION.","PZA","1.0000",0,"CERO PESOS 00/100 M.N.",0,254641]
[880612,"SUMINISTRO Y COLOCACION DE REGISTRO ELECTRICO DE CONCRETO, PREFABRICADO, PARA BAJA TENSION TIPO 2 NORMA C.F.E.- RBTB-2 DE 66 X 100 X 65 CM., CON TAPA DE CONCRETO,  MARCO Y CONTRAMARCO  DE ACERO GALVANIZADO, INCLUYE: TRAZO, EXCAVACION, RELLENOS COMPACTADOS, FILTRO DE GRAVA, RESANADO FINO DE TUBERIAS EN SU INTERIOR, HERRAMIENTAS, MANO DE OBRA, FLETES, ACARREO AL SITIO DE SU COLOCACION Y LIMPIEZA DEL AREA DE TRABAJO.","PZA","4.0000",0,"CERO PESOS 00/100 M.N.",0,254642]
[880618,"SUMINISTRO Y COLOCACION DE REGISTRO ELECTRICO PARA ALUMBRADO, PREFABRICADO  DE 0.40 X 0.40 X 0.60 MTS. CON TAPA DE CONCRETO,  MARCO Y CONTRAMARCO DE FIERRO GALVANIZADO, INCLUYE: TRAZO, EXCAVACION, TAPA DE CONCRETO CON MARCO Y CONTRAMARCO DE ANGULO, RELLENO, FILTRO DE GRAVA, HERRAMIENTAS, MANO DE OBRA, FLETES, ACARREO AL SITIO DE SU COLOCACION Y LIMPIEZA DEL AREA DE TRABAJO.","PZA","5.0000",0,"CERO PESOS 00/100 M.N.",0,254643]
[880701,"ELABORACION DE PROYECTO DE INSTALACIONES, TRAMITES NECESARIOS  ANTE C. F. E.  Y SECOFI, PARA SU APROBACION, INCLUYE: ELABORACION DE PLANOS, ADECUACION DE LOS PLANOS ELECTRICOS DEL NUCLEO DE LA ESCUELA, CUADRO DE CARGAS EN BAJA TENSION PARA SU APROBACION POR LA UNIDAD VERIFICADORA,  (EL PRECIO INCLUYE EL PAGO POR CERTIFICADO Y/O CONSTANCIA DE LA UNIDAD UVIE (UNIDAD DE VERIFICACION) POR INSTALACION DE BAJA TENSION, EXPEDIDA POR UN VERIFICADOR ACREDITADO COMO TAL POR LA SEMIP Y REGISTRADO ANTE C.F.E.).","PDA","1.0000",0,"CERO PESOS 00/100 M.N.",0,254644]
[907176,"DEMOLICION DE PISO DE CONCRETO DE 0.08 A 0.10 CM DE ESPESOR, Y  5 A 15 CMS. DE ANCHO, INCLUYE: CORTE CON DISCO PARA DELIMITAR AREA DE DEMOLICION, EXCAVACION, RELLENO, COMPACTACION, REPOSICION DEL PISO DE CONCRETO, MANO DE OBRA, HERRAMIENTA, EQUIPO,  CARGA Y ACARREO INTERIOR Y FUERA DE LA OBRA DEL MATERIAL PRODUCTO DE LA DEMOLICION.","ML ","3.0000",0,"CERO PESOS 00/100 M.N.",0,254645]
[910691,"CAMBIO DE LA BASE DE MEDICION EXISTENTE (SISTEMA TRIFASICO A 4 HILOS), EN EL MURETE DE ACOMETIDA, POR OTRA BASE DE MEDICION DEL TIPO TRIFASICO A 4 HILOS DE 7 X 200 AMPS. INCLUYE: MUFA, CABLE, TUBO, TRAMITES ANTE LA C.F.E. POR EL CAMBIO DE TARIFA Y LA CONTRATACION DEL NUEVO SERVICIO, MANO DE OBRA CALIFICADA, MATERIALES MENORES, DESPERDICIOS, PRUEBAS Y ACARREOS AL SITIO DE SU COLOCACION.","PDA","2.0000",0,"CERO PESOS 00/100 M.N.",0,254646]
[916628,"ADECUACION DE MURETE DE ACOMETIDA PARA PROTECCION DE INTERRUPTOR GENERAL Y TABLERO DE DISTRIBUCION.","PDA","1.0000",0,"CERO PESOS 00/100 M.N.",0,254647]
[972094,"SUMINISTRO Y COLOCACION DE LUMINARIA PUNTA POSTE DE ADITIVOS METALICOS DE 175 WATTS, MARCA AMERICAN ELECTRIC LIGHTHING MODELO CONTEMPO, SERIE 245 CAT. CAT. 245-17S-LL-220-R2-GL-NR-MX, INCLUYE BALASTRO ELECTROMAGNETICO AUTORREGULADO ALTO FACTOR DE POTENCIA Y MATERIAL DE FIJACION.","PZA","1.0000",0,"CERO PESOS 00/100 M.N.",0,254648]
[null,"RESUMEN DE PARTIDAS"]
["BAS-REH-02718","REHABILITACIÓN GENERAL EN EL JARDÍN DE NIÑOS ROSARIO CASTELLANOS CCT 14EJN0023T, UBICADO EN LA COLONIA GUADALAJARA ORIENTE, MUNICIPIO DE GUADALAJARA, JALISCO.",null,null,null,null,{"$f":"G17","v":"$ 0.00 "}]
["EDFS","EDIFICIOS",null,null,null,null,{"$f":"G18","v":"$ 0.00 "}]
["EDFS.01(140)","DEMOLICIONES, DESMONTAJES Y MECANICA DE SUELOS    ",null,null,null,null,{"$f":"G19","v":"$ 0.00 "}]
["EDFS.02(160)","CIMENTACION                                       ",null,null,null,null,{"$f":"G27","v":"$ 0.00 "}]
["EDFS.03(310)","MUROS, CADENAS, CASTILLOS Y REPIZONES.            ",null,null,null,null,{"$f":"G29","v":"$ 0.00 "}]
["EDFS.04(355)","RECUBRIMIENTOS Y ACABADOS                         ",null,null,null,null,{"$f":"G31","v":"$ 0.00 "}]
["EDFS.05(372)","PISOS                                             ",null,null,null,null,{"$f":"G33","v":"$ 0.00 "}]
["EDFS.06(510)","INSTALACION ELECTRICA EN EDIFICIO                 ",null,null,null,null,{"$f":"G36","v":"$ 0.00 "}]
["EDFS.07(530)","EQUIPOS E INSTALACIONES DE REDES DE VOZ Y DATOS.  ",null,null,null,null,{"$f":"G75","v":"$ 0.00 "}]
[33,"MURO PARA CONTENCION Y ACOTAMIENTO PERIMETRAL.",null,null,null,null,{"$f":"G78","v":"$ 0.00 "}]
["33.01(140)","DEMOLICIONES, DESMONTAJES Y MECANICA DE SUELOS    ",null,null,null,null,{"$f":"G79","v":"$ 0.00 "}]
["33.02(150)","TRABAJOS PRELIMINARES                             ",null,null,null,null,{"$f":"G83","v":"$ 0.00 "}]
["33.03(160)","CIMENTACION                                       ",null,null,null,null,{"$f":"G87","v":"$ 0.00 "}]
["33.04(200)","ESTRUCTURA                                        ",null,null,null,null,{"$f":"G94","v":"$ 0.00 "}]
["33.05(310)","MUROS, CADENAS, CASTILLOS Y REPIZONES.            ",null,null,null,null,{"$f":"G99","v":"$ 0.00 "}]
["33.06(355)","RECUBRIMIENTOS Y ACABADOS                         ",null,null,null,null,{"$f":"G103","v":"$ 0.00 "}]
["33.07(393)","PINTURA                                           ",null,null,null,null,{"$f":"G107","v":"$ 0.00 "}]
["33.08(410)","CANCELERIA, HERRERIA, ALUMINIO, VIDRIOS Y CHAPAS  ",null,null,null,null,{"$f":"G110","v":"$ 0.00 "}]
["01","PLAZA Y ANDADORES",null,null,null,null,{"$f":"G112","v":"$ 0.00 "}]
["01.01(140)","DEMOLICIONES, DESMONTAJES Y MECANICA DE SUELOS    ",null,null,null,null,{"$f":"G113","v":"$ 0.00 "}]
["01.02(160)","CIMENTACION                                       ",null,null,null,null,{"$f":"G115","v":"$ 0.00 "}]
["01.03(372)","PISOS                                             ",null,null,null,null,{"$f":"G117","v":"$ 0.00 "}]
[69,"RAMPAS",null,null,null,null,{"$f":"G119","v":"$ 0.00 "}]
["69.01(150)","TRABAJOS PRELIMINARES                             ",null,null,null,null,{"$f":"G120","v":"$ 0.00 "}]
["69.02(160)","CIMENTACION                                       ",null,null,null,null,{"$f":"G126","v":"$ 0.00 "}]
["69.03(310)","MUROS, CADENAS, CASTILLOS Y REPIZONES.            ",null,null,null,null,{"$f":"G132","v":"$ 0.00 "}]
["69.04(372)","PISOS                                             ",null,null,null,null,{"$f":"G134","v":"$ 0.00 "}]
["69.05(393)","PINTURA                                           ",null,null,null,null,{"$f":"G136","v":"$ 0.00 "}]
["69.06(396)","LIMPIEZA                                          ",null,null,null,null,{"$f":"G138","v":"$ 0.00 "}]
["69.07(410)","CANCELERIA, HERRERIA, ALUMINIO, VIDRIOS Y CHAPAS  ",null,null,null,null,{"$f":"G140","v":"$ 0.00 "}]
["02","RED ELECTRICA",null,null,null,null,{"$f":"G142","v":"$ 0.00 "}]
["02.01(511)","INSTALACION ELECTRICA EN OBRA EXTERIOR            ",null,null,null,null,{"$f":"G143","v":"$ 0.00 "}]
[]
["IMPORTE CON LETRA (IVA INCLUIDO)",null,null,null,null,"SUBTOTAL M.N.",{"$f":"TEXT(G17,  \"$ #,##0.00 ;\")","v":"$ 0.00 "}]
[{"$f":"UPPER(CONVERTIRNUM(ROUND( G17 * 1.16, 2)))","v":"CERO PESOS 00/100 M.N."},null,null,null,null,"IVA M.N.",{"$f":"TEXT(ROUND( G17 * 0.16, 2),  \"$ #,##0.00 ;\")","v":"$ 0.00 "}]
[null,null,null,null,null,"TOTAL M.N.",{"$f":"TEXT(ROUND( G17 * 1.16, 2),  \"$ #,##0.00 ;\")","v":"$ 0.00 "}]